Workbook

Sheet Лист1
B1: Оперативна інформація про основні фінансові показники підприємств, установ та організацій, що належать до сфери управління Мінінфраструктури за І квартал 2016 у порівнянні з І кварталом 2015 року
V2: тис.грн.
B3: Назва підприємства | C3: код ЄДРПОУ | D3: Загальна вартість активів (Звіт про виконання ФП рядок 6020) | F3: Чистий дохід від реалізації (Звіт про виконання ФП рядок 1000) | H3: Собівартість (Звіт про виконання ФП рядок 1010) | J3: Чистий прибуток (Звіт про виконання ФП рядок 1200) | L3: Освоєно капітальних інвестицій (Звіт про виконання ФП рядок 4000) | N3: Сплата поточних податків та обов'язкових платежів до державного бюджету, внесків до державних цільових фондів та інших обов'язкових платежів (Звіт про виконання ФП рядок 2200) | P3: в т.ч. частина чистого прибутку/дивіденди (Звіт про виконання ФП рядок 2115 (для ПраТ рядок 2131) | R3: Чисельність персоналу в еквіваленті повної зайнятості, чол. | T3: Средня заробітня плата 1-го робітника, грн. | V3: Сума заборгованості із виплати заробітної плати, тис. грн.
D4: І кв. 2015 звіт | E4: І кв. 2016 звіт | F4: І кв. 2015 звіт | G4: І кв. 2016 звіт | H4: І кв. 2015 звіт | I4: І кв. 2016 звіт | J4: І кв. 2015 звіт | K4: І кв. 2016 звіт | L4: І кв. 2015 звіт | M4: І кв. 2016 звіт | N4: І кв. 2015 звіт | O4: І кв. 2016 звіт | P4: І кв. 2015 звіт | Q4: І кв. 2016 звіт | R4: І кв. 2015 звіт | S4: І кв. 2016 звіт | T4: І кв. 2015 звіт | U4: І кв. 2016 звіт | V4: на 01.04.2015 | W4: на 01.04.2016
B5: Залізнична галузь всього, у тому числі: | D5: =D16+D17 -> 303253 | E5: =E6+E7 -> 387263223 | F5: =F6+F7 -> 16050739 | G5: =G6+G7 -> 15074347 | H5: 12839401 | I5: 14766714 | J5: -1260019 | K5: -2012445 | L5: 1281000 | M5: 803673 | N5: 1307898 | O5: 1433700 | P5: 64167 | Q5: 165686 | R5: 0 | S5: 251045 | T5: 3833.7 | U5: 33995.5 | V5: 0 | W5: 0
B6: ПАТ "Укрзалізниця" | C6: 40075815 | D6: =D14+D15 -> 332165 | E6: 386002744 | F6: 16028338 | G6: 14788951 | H6: 12814616 | I6: 14495448 | J6: -1222989 | K6: -1983992 | L6: 1280992 | M6: 803673 | N6: 1307485 | O6: 1396433 | P6: 64167 | Q6: 165686 | S6: 245154 | T6: 3833.7 | U6: 5137.4 | V6: 0 | W6: 0
B7: ПрАТ разом, в т.ч.: | E7: =E8+E9+E10+E11+E12+E13+E14 -> 1260479 | F7: =F8+F9+F10+F11+F12+F13+F14 -> 22401 | G7: =G8+G9+G10+G11+G12+G13+G14 -> 285396 | H7: =H8+H9+H10+H11+H12+H13+H14 -> 24785 | I7: 271266 | J7: -37030 | K7: -28453 | L7: 8 | M7: 0 | N7: 413 | O7: 37267 | P7: 0 | Q7: 0 | R7: 0 | S7: 5891 | T7: 0 | U7: 28858.1 | V7: 0 | W7: 0
B8: ПрАТ "Дніпропетровський ТРЗ" | C8: 00659101 | E8: 228878 | F8: 2135 | G8: 67166 | H8: 2089 | I8: 66426 | J8: -5991 | K8: -4416 | O8: 4156 | S8: 953 | U8: 3495.6 | V8: 0 | W8: 0
B9: ПрАТ "Запорізький ЕВРЗ" | C9: 01056273 | E9: 299955 | F9: 172 | G9: 79088 | H9: 138 | I9: 74308 | J9: -9731 | K9: -8173 | O9: 9736 | S9: 2011 | U9: 4516.8 | V9: 0 | W9: 0
B10: ПрАТ "Львівський ЛРЗ" | C10: 00740599 | E10: 238002 | F10: 7669 | G10: 27276 | H10: 6988 | I10: 26325 | J10: -9368 | K10: -10758 | O10: 11390 | S10: 1166 | U10: 4209.6 | V10: 0 | W10: 0
B11: ПрАТ "Київський ЕВРЗ" | C11: 00480247 | E11: 286711 | F11: 1178 | G11: 27959 | H11: 1176 | I11: 24717 | J11: -4577 | K11: -2904 | O11: 8361 | S11: 842 | U11: 3863.8 | V11: 0 | W11: 0
B12: ПрАТ "Коростенський завод ЗБШ" | C12: 00280406 | E12: 80061 | F12: 2449 | G12: 46854 | H12: 3686 | I12: 42359 | J12: -2971 | K12: 737 | O12: 2995 | S12: 339 | U12: 4329.4 | V12: 0 | W12: 0
B13: ПрАТ "Гніванський ЗСЗБ" | C13: 00282435 | E13: 97611 | F13: 6903 | G13: 35097 | H13: 8718 | I13: 35308 | J13: -4084 | K13: -2644 | O13: 113 | S13: 482 | U13: 3556.4 | V13: 0 | W13: 0
B14: ПрАТ "КЕЗ "Трансигнал" | C14: 00260652 | D14: 28912 | E14: 29261 | F14: 1895 | G14: 1956 | H14: 1990 | I14: 1823 | J14: -308 | K14: -295 | L14: 8 | M14: 0 | N14: 413 | O14: 516 | P14: 0 | Q14: 0 | R14: 0 | S14: 98 | T14: 0 | U14: 4886.5 | V14: 0 | W14: 0
B15: ПраТки всього, у тому числі: | D15: =D16+D17 -> 303253 | E15: =E16+E17 -> 304966 | F15: 57697 | G15: 82241 | H15: 57135.9 | I15: 65041 | J15: -277 | K15: 8622.9 | L15: 2501.9 | M15: 821.2 | N15: 17297.7 | O15: 28800.1 | P15: 515.7 | Q15: 0 | R15: 1908 | S15: 1966 | T15: 5162.7 | U15: 7121.3 | V15: 0 | W15: 381.1
B16: ПрАТ "Харківський електротехнічний завод "Трансзв'язок" | C16: 01056735 | D16: 18971 | E16: 14774 | F16: 967 | G16: 1293 | H16: 1617.1 | I16: 1111 | J16: -1185.5 | K16: -983 | L16: 88.3 | M16: 10.2 | N16: 457.3 | O16: 1323.1 | P16: -86.1 | Q16: 0 | R16: 114 | S16: 129 | T16: 1745.7 | U16: 2632.3 | V16: 0 | W16: 381.1
B17: ПрАТ "Київ-Дніпровське МППЗТ" | C17: 04737111 | D17: 284282 | E17: 290192 | F17: 56730 | G17: 80948 | H17: 55518.8 | I17: 63930 | J17: 908.5 | K17: 9605.9 | L17: 2413.6 | M17: 811 | N17: 16840.4 | O17: 27477 | P17: 601.8 | Q17: 0 | R17: 1794 | S17: 1837 | T17: 3417 | U17: 4489 | V17: 0 | W17: 0
B18: Авіаційна галузь всього, у тому числі: | D18: =SUM(D19:D23) -> 16560155 | E18: =SUM(E19:E23) -> 16303445 | F18: 935865 | G18: 1127878 | H18: 616981 | I18: 704172 | J18: -98185 | K18: 276638 | L18: 28802 | M18: 39086 | N18: -70638 | O18: 300167 | P18: 0 | Q18: 41101 | R18: 9417 | S18: 8759 | T18: 29369.3 | U18: 37414 | V18: 3388.3 | W18: 3703.9
B19: Украерорух | C19: 19477064 | D19: 4845742 | E19: 5098989 | F19: 381179 | G19: 403947 | H19: 329295 | I19: 381335 | J19: 196830 | K19: 82299 | L19: 11100 | M19: 28810 | N19: -129668 | O19: 107032 | P19: 0 | Q19: 0 | R19: 4729 | S19: 4255 | T19: 13269 | U19: 16070 | V19: 2672 | W19: 2672
B20: ДП "Ма "Бориспіль" | C20: 20572069 | D20: 9593973 | E20: 9105989 | F20: 526577 | G20: 674138 | H20: 245236 | I20: 275347 | J20: -299050 | K20: 175909 | L20: 16880 | M20: 8565 | N20: 51031 | O20: 176619 | P20: 0 | Q20: 39171 | R20: 3812 | S20: 3648 | T20: 6148 | U20: 7969 | V20: 0 | W20: 0
B21: ДП "МА "Львів" ім. Данила Галицького" | C21: 33073442 | D21: 2110771 | E21: 2089403 | F21: 27634 | G21: 49648 | H21: 42269 | I21: 47389 | J21: 4506 | K21: 19068 | L21: 822 | M21: 1711 | N21: 7653 | O21: 16433 | P21: 0 | Q21: 1930 | R21: 836 | S21: 818 | T21: 3934 | U21: 6892 | V21: 0 | W21: 0
B22: Украеропроект | C22: 1131589 | D22: 3734 | E22: 3448 | F22: 475 | G22: 145 | H22: 444 | I22: 323 | J22: -110 | K22: -307 | L22: 0 | M22: 0 | N22: 262 | O22: 83 | P22: 0 | Q22: 0 | R22: 20 | S22: 19 | T22: 2320 | U22: 3477.7 | V22: 384.9 | W22: 375.5
B23: Запорізький центр льотної підготовки ім. О.І.Покришкіна | C23: 04645768 | D23: 5935 | E23: 5616 | F23: 0 | G23: 0 | H23: -263 | I23: -222 | J23: -361 | K23: -331 | L23: 0 | M23: 0 | N23: 84 | O23: 0 | P23: 0 | Q23: 0 | R23: 20 | S23: 19 | T23: 3698.3 | U23: 3005.3 | V23: 331.4 | W23: 656.4
B24: Морська і річкова галузь всього, в тому числі: | D24: =SUM(D25:D49) -> 31594286 | E24: =SUM(E25:E49) -> 36025773.6 | F24: 3831012.5 | G24: 3653777.8 | H24: -1397862.1 | I24: -1592554.2 | J24: 2143116.4 | K24: 1776699 | L24: 50686.8 | M24: 261052.1 | N24: 1109008.2 | O24: 1511642.5 | P24: 221960.1 | Q24: 246064.1 | R24: 28668 | S24: 27957 | T24: =SUM(T25:T49) -> 164652.36 | U24: 205458.24 | V24: =SUM(V25:V47) -> 3247.3 | W24: =SUM(W25:W48) -> 4013.4
B25: Адміністрація морських портів | C25: 38727770 | D25: 18491293 | E25: 21440685 | F25: 1699762 | G25: 1791285 | H25: -364345 | I25: -486261 | J25: 949385 | K25: 1078602 | L25: 12840 | M25: 149906 | N25: 338244 | O25: 730017 | P25: 46351 | Q25: 162198 | R25: 8026 | S25: 7809 | T25: 9039.01 | U25: 11803.7
B26: Адміністрація річкових портів | C26: 33404067 | D26: 80486 | E26: 80664 | F26: 632 | G26: 1076 | H26: -1363 | I26: -1210 | J26: -1380 | K26: -845 | L26: 1.9 | M26: 5.9 | N26: 435.4 | O26: 567.7 | P26: 0 | Q26: 0 | R26: 95 | S26: 99 | T26: 3367.37 | U26: 3458.25 | V26: 141.5
B27: Бердянський МТП | C27: 1125761 | D27: 365371 | E27: 469243 | F27: 109988 | G27: 92704 | H27: -68295 | I27: -62358 | J27: 46091 | K27: 29281 | L27: 1154.4 | M27: 406.9 | N27: 40533.3 | O27: 59484.4 | P27: 4446 | Q27: 7947.7 | R27: 1169 | S27: 1135 | T27: 10544.8 | U27: 8771.13
B28: Білгород-Дністровський МТП | C28: 1125689 | D28: 243865 | E28: 234888 | F28: 37185 | G28: 7280 | H28: -28498 | I28: -10410 | J28: 2236 | K28: -3106 | L28: 989 | M28: 185 | N28: 10062.5 | O28: 6823.9 | P28: 28.5 | Q28: 0 | R28: 624 | S28: 212 | T28: 5365.01 | U28: 5193.55
B29: Держгідрографія | C29: 21720000 | D29: 405662 | E29: 490093 | F29: 92470 | G29: 101271 | H29: -29168 | I29: -39301 | J29: 49899 | K29: 43098 | L29: 0 | M29: 3920 | N29: 26558 | O29: 37489 | P29: 168 | Q29: 11670 | R29: 616 | S29: 639 | T29: 12828.41 | U29: 16237.56
B30: Ізмаїльський МТП | C30: 1125815 | D30: 477441 | E30: 526153 | F30: 147695 | G30: 134493 | H30: -99417 | I30: -105052 | J30: 42005 | K30: 22271 | L30: 2087 | M30: 2756 | N30: 43593 | O30: 46924 | P30: 3554 | Q30: 167 | R30: 1411 | S30: 1405 | T30: 11199.62 | U30: 14391.34
B31: Іллічівський МТП | C31: 1125672 | D31: 2170932 | E31: 2289590 | F31: 414982 | G31: 349425 | H31: -202234 | I31: -259946 | J31: 257349 | K31: 89308 | L31: 617.6 | M31: 860 | N31: 183929 | O31: 129820 | P31: 70220 | Q31: 1133 | R31: 3910 | S31: 4178 | T31: 6436.62 | U31: 8220.14
B32: Інспекція з дипломування | C32: 25958804 | D32: 12233 | E32: 21735 | F32: 8822 | G32: 9838 | H32: -2977 | I32: -4098 | J32: 3619 | K32: 2077 | L32: 153 | M32: 5 | N32: 3635 | O32: 4518 | P32: 410 | Q32: 541 | R32: 108 | S32: 110 | T32: 5955.86 | U32: 8452.73
B33: Інститут післядипломної освіти | C33: 1126008 | D33: 2347 | E33: 3714.6 | F33: 677 | G33: 856.5 | H33: -659 | I33: -717.9 | J33: 33 | K33: 62.2 | L33: 6 | M33: 5 | N33: 479 | O33: 660 | R33: 21 | S33: 24 | T33: 4366.67 | U33: 4513.89
B34: Маріупольський МТП | C34: 1125755 | D34: 2797743 | E34: 3012024 | F34: 254140 | G34: 150823 | H34: -158559 | I34: -154252 | J34: 196013.9 | K34: 60179 | L34: 3283.7 | M34: 42695.8 | N34: 140459 | O34: 102178.6 | P34: 28816.3 | Q34: 43762.7 | R34: 3483 | S34: 3456 | T34: 8241.99 | U34: 9925.6
B35: Миколаївський МТП | C35: 1125608 | D35: 253799 | E35: 256171 | F35: 8786 | G35: 10753 | H35: -3317 | I35: -3550 | J35: 952 | K35: 2373 | L35: 2305 | M35: 268 | N35: 10699 | O35: 7538.9 | P35: 6387.5 | Q35: 814.5 | R35: 41 | S35: 39 | T35: 14011.38 | U35: 16740.17
B36: Одеський МТП | C36: 1125666 | D36: 2033147 | E36: 2314488 | F36: 133423 | G36: 125482 | H36: -41649.5 | I36: -46759 | J36: 195670 | K36: 101441 | L36: 0 | M36: 0 | N36: 48152 | O36: 65966.3 | P36: 0 | Q36: 13393 | R36: 952 | S36: 929 | T36: 8572.51 | U36: 12372.16
B37: Регістр судноплавства України | C37: 30058275 | D37: 49441 | E37: 65675 | F37: 8334.5 | G37: 12822.3 | H37: -4240.6 | I37: -6111.3 | J37: 9688.6 | K37: 6849.8 | L37: 90 | M37: 1452.1 | N37: 5327.2 | O37: 7057.2 | P37: 446.2 | Q37: 675.7 | R37: 171 | S37: 162 | T37: 7516.57 | U37: 11277.78
B38: Ренійський МТП | C38: 1125809 | D38: 38713 | E38: 32188 | F38: 11750 | G38: 1903 | H38: -9136 | I38: -6386 | J38: 2341 | K38: -5668 | L38: 142 | N38: 3435 | O38: 1758 | R38: 425 | S38: 378 | T38: 3180.39 | U38: 3343.39 | W38: 2575.6
B39: Скадовський МТП | C39: 1125703 | D39: 23935 | E39: 22649 | F39: 312 | G39: 162 | H39: -1138 | I39: -1045 | J39: -1186.7 | K39: -1248 | L39: 3.5 | M39: 0 | N39: 91.7 | O39: 18.8 | P39: 0 | Q39: 0 | R39: 64 | S39: 64 | T39: 3097.92 | U39: 3474.48 | V39: 615.3 | W39: 8
B40: СМП "Октябрьск" | C40: 19290012 | D40: 434696 | E40: 554178 | F40: 116493 | G40: 115802 | H40: -50400 | I40: -54240 | J40: 64991 | K40: 48847 | L40: 2218 | M40: 2751 | N40: 32867 | O40: 53552 | P40: 253 | Q40: 452 | R40: 656 | S40: 692 | T40: 9790.35 | U40: 12336.95
B41: Укрводшлях | C41: 3150102 | D41: 156085 | E41: 164783 | F41: 996 | G41: 11926 | H41: -12330 | I41: -17640 | J41: -9294 | K41: 10 | M41: 269 | N41: 4574 | O41: 6216 | Q41: 9 | R41: 973 | S41: 921 | T41: 2373.62 | U41: 3341.87 | V41: 2490.5
B42: УкрНДІМФ | C42: 1126996 | D42: 4804 | E42: 4746 | F42: 1180 | G42: 1539 | H42: -921 | I42: -1351 | J42: 5 | K42: 4 | M42: 5 | N42: 636 | O42: 934 | R42: 109 | S42: 98 | T42: 2061.16 | U42: 2543.88
B43: Усть-Дунайский МТП | C43: 1125206 | D43: 29974 | E43: 29024 | F43: 862 | G43: 887 | H43: -1233 | I43: -1503 | J43: 673 | K43: 118 | L43: 3.7 | N43: 872.8 | O43: 805.5 | R43: 72 | S43: 78 | T43: 3604.63 | U43: 3636.32
B44: Херсонський МТП | C44: 1125695 | D44: 269823 | E44: 285910 | F44: 51147 | G44: 50586 | H44: -28325 | I44: -34300 | J44: 30944.6 | K44: 12933 | M44: 4492.6 | N44: 15475.6 | O44: 27432.5 | Q44: 1646.8 | R44: 691 | S44: 688 | T44: 5201.78 | U44: 9594.23
B45: ЧГМА Інфлот | C45: 1180568 | D45: 16984 | E45: 14795 | F45: 2259 | G45: 1714 | H45: -1191 | I45: -1144 | J45: 2894 | K45: 866 | L45: 0 | M45: 0 | N45: 904.9 | O45: 781.6 | P45: 35.8 | Q45: 88.7 | R45: 43 | S45: 39 | T45: 7310.08 | U45: 6596.58
B46: Чоразморшлях | C46: 1125637 | D46: 133263 | E46: 98946 | F46: 1330 | G46: 1905 | H46: -483 | I46: -540 | J46: -31284 | K46: -5510 | L46: 8 | N46: -756 | R46: 48 | S46: 41 | T46: 3700.69 | U46: 4489.43 | W46: 1429.8
B47: ЧорноморНДІпроект | C47: 1128110 | D47: 28210 | E47: 29660 | F47: 6855 | G47: 5452 | H47: -6235 | I47: -4589 | J47: 154 | K47: 50 | L47: 127 | M47: 84.8 | N47: 1983.3 | O47: 2050.2 | P47: 30.8 | Q47: 58 | R47: 267 | S47: 256 | T47: 3067.04 | U47: 4084.77
B48: Южний МТП | C48: 4704790 | D48: 2813064 | E48: 3318314 | F48: 591691 | G48: 582943 | H48: -188172 | I48: -201298 | J48: 322368 | K48: 298484 | L48: 24657 | M48: 49982 | N48: 192533 | O48: 209022 | P48: 60813 | Q48: 1507 | R48: 2747 | S48: 2659 | T48: 11167.44 | U48: 17876.7
B49: УДП | C49: 1125821 | D49: 260975 | E49: 265457 | F49: 129241 | G49: 90850 | H49: -93576 | I49: -88492 | J49: 8949 | K49: -3778 | M49: 1002 | N49: 4284.5 | O49: 10026.9 | R49: 1946 | S49: 1846 | T49: 2651.44 | U49: 2781.64
B50: Автомобільна галузь всього, в тому числі: | D50: =D51+D52 -> 142656 | E50: =E51+E52 -> 147500 | F50: 30890 | G50: 42665 | H50: 24995 | I50: 33690 | J50: 2916 | K50: 1709 | L50: 648 | M50: =M51+M52 -> 2649 | N50: =N51+N52 -> 11205 | O50: =O51+O52 -> 14651 | P50: =P51+P52 -> 342 | Q50: =Q51+Q52 -> 728 | R50: =R51+R52 -> 1964 | S50: =S51+S52 -> 1601 | T50: =T51+T52 -> 8097.15 | U50: =U51+U52 -> 12554.93 | V50: =V51+V52 -> 0 | W50: =W51+W52 -> 0
B51: ДП "ДержавтотрансНДІпроект" | C51: 1527695 | D51: 41287 | E51: 44629 | F51: 9076 | G51: 14988 | H51: 8203 | I51: 12570 | J51: 2897 | K51: 1205 | L51: 525 | M51: 2314 | N51: 4403 | O51: 5736 | P51: 339 | Q51: 350 | R51: 229 | S51: 221 | T51: 6029.15 | U51: 9607.93 | V51: 0 | W51: 0
B52: УДП "Укрінтеравтосервіс" | C52: 21536845 | D52: 101369 | E52: 102871 | F52: 21814 | G52: 27677 | H52: 16792 | I52: 21120 | J52: 19 | K52: 504 | L52: 123 | M52: 335 | N52: 6802 | O52: 8915 | P52: 3 | Q52: 378 | R52: 1735 | S52: 1380 | T52: 2068 | U52: 2947 | V52: 0 | W52: 0
B53: Підприємства прямого підпорядкування всього, в тому числі | D53: =SUM(D54:D58) -> 3804598.1 | E53: =SUM(E54:E58) -> 4013874.7 | F53: 940033.2 | G53: 1020439.6 | H53: 886725.4 | I53: 934691.1 | J53: 6378 | K53: 12127.3 | L53: 1251 | M53: 10073.3 | N53: 297254.1 | O53: 273030.9 | P53: 6787.2 | Q53: 78.6 | R53: 59387 | S53: 57313 | T53: 17596.38 | U53: 18737.51 | V53: =SUM(V54:V58) -> 0 | W53: =SUM(W54:W58) -> 0
B54: ДП "Бюро з стандартизації та нормативного забезпечення на залізничному транспорті" | C54: 24341869 | D54: 340.9 | E54: 67.6 | F54: 274.7 | G54: 33 | H54: 241.4 | I54: 55.2 | J54: 8.1 | K54: -32.8 | L54: 0 | M54: 0 | N54: 69 | O54: 20.9 | P54: 1.2 | Q54: 0 | R54: 13 | S54: 11 | T54: 2177 | U54: 397 | V54: 0 | W54: 0
B55: ДП "Дніпропетровський орган сертифікації на залізничному транспорті" | C55: 24244451 | D55: 597.9 | E55: 1352.4 | F55: 1210.6 | G55: 1380.7 | H55: 1403.4 | I55: 1083 | J55: 16.1 | K55: 326.1 | L55: 0.6 | M55: 666.6 | N55: 505.8 | O55: 664.7 | P55: 26.2 | Q55: 78.6 | R55: 20 | S55: 25 | T55: 4755 | U55: 5654 | V55: 0 | W55: 0
B56: Орган з сертифікації автоматизованих та автоматичних систем управління та умов процесу перевезення на зт | C56: 23460862 | D56: 1245.3 | E56: 331.7 | F56: 975.9 | G56: 233.9 | H56: 883.6 | I56: 389.9 | J56: 13.8 | K56: -220 | L56: 2.4 | M56: 0 | N56: 291.3 | O56: 154.3 | P56: 2.1 | Q56: 0 | R56: 22 | S56: 19 | T56: 4537.88 | U56: 5345.61 | V56: 0 | W56: 0
B57: ДП "Укрсервіс Мінтрансу" | C57: 3021846 | D57: 410560 | E57: 394820 | F57: 4764 | G57: 8589 | H57: 10122 | I57: 10718 | J57: -6211 | K57: -3101 | L57: 18 | M57: 3 | N57: 3150 | O57: 1874 | P57: 0 | Q57: 0 | R57: 207 | S57: 212 | T57: 4209 | U57: 4980 | V57: 0 | W57: 0
B58: Українське державне підприємства поштового зв'язку "Укрпошта" | C58: 21560045 | D58: 3391854 | E58: 3617303 | F58: 932808 | G58: 1010203 | H58: 874075 | I58: 922445 | J58: 12551 | K58: 15155 | L58: 1230 | M58: 9403.7 | N58: 293238 | O58: 270317 | P58: 6757.7 | Q58: 0 | R58: 59125 | S58: 57046 | T58: 1917.5 | U58: 2360.9 | V58: 0 | W58: 0
